Cogmind - Beta 13 X1 @@@ ROGUE MODE // 2023.07.05 @ 18:12:54 Player: LU-1G1 Result: Destroyed by H-71 Marshal with Heavy Mass Driver Performance ------------- Evolutions (7) 3500 Regions Visited (25) 5000 Robots Destroyed (234) 1170 Value Destroyed (10913) 10913 Prototype IDs (44) 880 Alien Tech Used (2) 400 Bonus (5659) 5659 TOTAL SCORE: 27522 Bonus ------- High Alert Combat Kills 265 Follower Combat Kills 1521 Network Hubs Disabled 200 Met Data Miner 300 Met Zhirov 300 Met Warlord at Base 500 MAIN.C Attacked Warlord 500 Warlord Defense Kills 1530 A7 Reached Mainframe 300 Met R17 at Cetus 500 Friendly Fire -257 Cogmind --------- Core Integrity 0/1300 Matter 300/300 Energy 99/100 System Corruption 3% Temperature Cool (0) Movement Core (50) Location -3/Research Parts ------- > --- POWER (3) -------- (None) > --- PROPULSION (6) --- (None) > --- UTILITY (9) ------ (None) > --- WEAPON (3) ------- (None) > --- INVENTORY (5) ---- Improved Energy Well (400) Advanced Shield Generator Improved Force Field Transdimensional Reconstructor Railgun Peak State ------------ > --- POWER ------------ Light Particle Reactor Vortex Chain Reactor > --- PROPULSION ------- Centrium Heavy Treads Centrium Heavy Treads Centrium Heavy Treads > --- UTILITY ---------- Advanced Heat Sink High-capacity Storage Unit Precision Matter Filter Weapon Cycler Improved Medium Armor Plating Improved Heavy Armor Plating Graphene Brace Improved Force Field > --- WEAPON ----------- Railgun Railgun Helical Railgun > --- INVENTORY -------- Improved Treads Medium Treads Improved Energy Well Improved Energy Well Experimental Matter Compressor Advanced Gravity Neutralizer Experimental Weapon Shielding Improved Medium Armor Plating Graphene Brace Advanced Shield Generator Advanced Shield Generator Improved Force Field Advanced Hacking Suite Transdimensional Reconstructor Long-range Proton Cannon Long-range Proton Cannon Compact HERF Cannon Advanced Plasma Cannon Heavy Missile Launcher Power Maul [Rating: 162] Favorites ----------- Power Quantum Reactor Engine Reinforced Deuterium Engine Power Core Neutrino Core Reactor Quantum Reactor Propulsion Centrium Heavy Treads Treads Centrium Heavy Treads Leg Aluminum Leg Utility High-capacity Storage Unit Device Improved Cooling System Storage High-capacity Storage Unit Processor Advanced Targeting Computer Hackware Hacking Suite Protection Improved Heavy Armor Plating Weapon Precision Assault Rifle Energy Gun Medium Laser Energy Cannon Long-range Proton Cannon Ballistic Gun Precision Assault Rifle Ballistic Cannon Mini Assault Cannon Launcher Heavy Missile Launcher Impact Weapon Heavy Mace Slashing Weapon Plasma Sword Build | -11 -10 -10 -8 -8 -7 -7 -7 -7 -6 -6 -6 -6 -6 -6 -5 -5 -5 -5 -4 -4 -4 -4 -4 -3 -3 ------- Run | Jun Mat Sub Mat Sto Fac Low Low Dat Pro Fac Ext Cet Arc Hub Fac Upp Upp War Pro Fac Upp Upp Zhi Pro Res Slots Evolved 14 | . . . 4 . 2 . . . . 2 . . . . 2 . . . . 2 . . . . 2 Power 2 | . . . . . 1 . . . . . . . . . . . . . . 1 . . . . . Propulsion 4 | . . . 2 . . . . . . . . . . . 2 . . . . . . . . . . Utility 7 | . . . 2 . 1 . . . . 2 . . . . . . . . . 1 . . . . 1 Weapon 1 | . . . . . . . . . . . . . . . . . . . . . . . . . 1 Parts Attached 286 | 7 7 4 21 46 19 3 . . 2 20 20 10 5 7 20 2 7 18 7 15 6 11 8 7 14 Power 23 | 1 2 1 1 4 1 . . . . 1 3 1 . 1 . . . 2 . 3 . 1 . . 1 Engine 15 | 1 2 1 . 4 1 . . . . 1 3 . . 1 . . . 1 . . . . . . . Core 2 | . . . 1 . . . . . . . . . . . . . . . . . . 1 . . . Reactor 6 | . . . . . . . . . . . . 1 . . . . . 1 . 3 . . . . 1 Propulsion 53 | 2 1 2 7 15 4 . . . . 5 6 3 1 1 2 . . . . 1 . 2 . . 1 Treads 46 | 2 1 2 1 14 4 . . . . 5 6 3 1 1 2 . . . . 1 . 2 . . 1 Leg 7 | . . . 6 1 . . . . . . . . . . . . . . . . . . . . . Wheel . | . . . . . . . . . . . . . . . . . . . . . . . . . . Hover . | . . . . . . . . . . . . . . . . . . . . . . . . . . Flight . | . . . . . . . . . . . . . . . . . . . . . . . . . . Utility 104 | 2 2 1 7 4 6 1 . . 1 5 10 4 4 3 10 . 2 10 2 10 3 5 4 1 7 Device 48 | 1 . . 2 . 2 . . . . 3 5 1 3 . 6 . 2 6 2 6 2 2 1 . 4 Storage 9 | 1 1 . 1 . 1 . . . . . . . . . 2 . . 1 . 2 . . . . . Processor 7 | . . . 3 . 1 . . . . 1 . . . . . . . 1 . 1 . . . . . Hackware 5 | . . . . . 1 . . . . . 1 1 . . . . . . . 1 . . . . 1 Protection 35 | . 1 1 1 4 1 1 . . 1 1 4 2 1 3 2 . . 2 . . 1 3 3 1 2 Artifact . | . . . . . . . . . . . . . . . . . . . . . . . . . . Weapon 106 | 2 2 . 6 23 8 2 . . 1 9 1 2 . 2 8 2 5 6 5 1 3 3 4 6 5 Energy Gun 2 | 1 . . . 1 . . . . . . . . . . . . . . . . . . . . . Energy Cannon 15 | . . . . 1 . . . . . . . . . . . . . . 2 . 2 3 2 2 3 Ballistic Gun 64 | 1 2 . 6 17 5 1 . . 1 6 1 2 . 1 5 1 3 4 3 . 1 . . 2 2 Ballistic Cannon 1 | . . . . . 1 . . . . . . . . . . . . . . . . . . . . Launcher 9 | . . . . . 2 . . . . 1 . . . . 1 1 . 1 . 1 . . . 2 . Special Weapon . | . . . . . . . . . . . . . . . . . . . . . . . . . . Impact Weapon 14 | . . . . 4 . 1 . . . 2 . . . 1 1 . 2 1 . . . . 2 . . Slashing Weapon 1 | . . . . . . . . . . . . . . . 1 . . . . . . . . . . Piercing Weapon . | . . . . . . . . . . . . . . . . . . . . . . . . . . Special Melee Weapon . | . . . . . . . . . . . . . . . . . . . . . . . . . . Unidentified Prototypes 25 | . . . . 4 2 1 . . . 1 . 2 . 1 2 . . 6 . 3 . . 2 . 1 Corrupted Parts 9 | . . . . . . . . . . . 2 2 . 1 3 . . . . . . 1 . . . System Corruption 49 | . . . . . . . . . . . 9 12 . 2 18 . . . . . . 8 . . . Parts Lost 65 | . 1 4 11 3 1 . . . 2 13 5 2 . 3 1 . . . . . 1 9 . . 9 Power 11 | . 1 1 1 1 . . . . . 2 2 . . 1 . . . . . . . 1 . . 1 Propulsion 16 | . . 2 4 . . . . . . 5 1 . . . . . . . . . . 2 . . 2 Utility 24 | . . 1 2 1 1 . . . 1 6 1 . . 1 . . . . . . 1 4 . . 5 Weapon 14 | . . . 4 1 . . . . 1 . 1 2 . 1 1 . . . . . . 2 . . 1 Highest Loss Streak 9 | . 1 2 9 1 1 . . . 2 4 3 2 . 2 1 . . . . . 1 9 . . 8 To Critical Strikes . | . . . . . . . . . . . . . . . . . . . . . . . . . . Average Slot Usage (%) 81 | . 99 89 78 90 91 92 92 92 92 88 86 88 85 84 72 70 69 72 75 72 72 69 64 73 68 Engine 7 | . 13 13 6 8 15 15 15 15 15 12 10 7 6 5 5 5 5 4 5 . . . . . . Reactor 3 | . . . . . . . . . . . . 4 6 6 5 5 5 5 5 9 10 6 5 5 5 Treads 20 | . 27 26 8 29 30 30 30 30 30 25 26 15 13 13 17 17 17 17 17 15 15 15 15 15 13 Device 10 | . 9 . 11 . 5 7 7 7 7 12 10 10 13 7 8 11 10 15 16 15 15 15 15 15 19 Storage 6 | . 14 6 9 9 7 7 7 7 7 6 6 6 6 6 5 5 5 5 5 5 5 5 5 5 3 Processor 3 | . . . 8 10 7 7 7 7 7 11 . . . . . . . . 5 5 10 3 . . . Hackware 1 | . . . . . . . . . . . 3 8 6 6 1 . . . . 3 . . . . . Protection 9 | . 4 13 1 9 7 7 7 7 7 3 13 20 18 24 14 11 11 8 5 5 4 10 14 15 10 Ballistic Gun 12 | . 19 28 16 16 14 14 15 15 15 11 12 12 13 11 10 11 10 10 10 10 . . . 4 9 Naked Turns 21 | . . . . . . . . . . . . . . . . . . . . . . . . . 21 Heaviest Build 150 | 14 32 32 33 49 79 78 78 78 78 88 103 112 112 118 125 125 124 126 110 139 149 150 150 150 149 Greatest Support 240 | 40 40 40 40 82 112 112 112 112 112 112 101 160 160 160 240 240 240 240 240 240 240 240 240 240 240 Greatest Overweight (x) 7 | . . 1 7 1 . . . . . . 1 1 . . . . . . . . . . . . . Average Overweight (x) . | . . . . . . . . . . . . . . . . . . . . . . . . . . Largest Inventory Capacity 20 | 8 15 15 15 15 20 20 20 20 20 20 20 20 20 20 20 20 20 20 20 20 20 20 20 20 20 Average Capacity 17 | 7 8 9 15 15 18 20 20 20 20 20 20 20 20 20 20 20 20 20 20 20 20 20 20 20 19 Most Carried 20 | 3 8 9 14 15 20 20 20 20 20 20 20 20 20 20 20 20 20 20 20 20 20 19 17 16 20 Average Carried 15 | 1 6 6 9 14 15 20 20 20 19 15 16 19 20 19 19 20 20 19 20 19 19 11 13 14 16 Final Capacity 20 | 8 15 5 15 15 20 20 20 20 20 20 20 20 20 20 20 20 20 20 20 20 20 20 20 20 5 Final Carried 20 | 2 8 5 13 13 20 20 20 20 17 12 20 20 20 17 20 20 20 20 20 20 19 10 14 15 5 Class Distribution -------------------- 62% | Scavenger-Mutant 35% | Mutant Dominant Class ---------------- Mutant | -10/Materials Mutant | -10/Subcaves Scavenger-Mutant | -8/Materials Scavenger-Mutant | -8/Storage Mutant | -7/Factory Mutant | -7/Lower Caves Mutant | -7/Lower Caves Mutant | -7/Data Miner Mutant | -6/Proximity Caves Mutant | -6/Factory Scavenger-Mutant | -6/Extension Scavenger-Mutant | -6/Cetus Scavenger-Mutant | -6/Archives Scavenger-Mutant | -6/Hub_04(d) Scavenger-Mutant | -5/Factory Scavenger-Mutant | -5/Upper Caves Scavenger-Mutant | -5/Upper Caves Scavenger-Mutant | -5/Warlord Scavenger-Mutant | -4/Proximity Caves Scavenger-Mutant | -4/Factory Scavenger-Mutant | -4/Upper Caves Scavenger-Mutant | -4/Upper Caves Scavenger-Mutant | -4/Zhirov Scavenger-Mutant | -3/Proximity Caves Scavenger-Mutant | -3/Research Resources | -11 -10 -10 -8 -8 -7 -7 -7 -7 -6 -6 -6 -6 -6 -6 -5 -5 -5 -5 -4 -4 -4 -4 -4 -3 -3 ----------- Run | Jun Mat Sub Mat Sto Fac Low Low Dat Pro Fac Ext Cet Arc Hub Fac Upp Upp War Pro Fac Upp Upp Zhi Pro Res Matter Collected 9095 | 267 93 287 468 1099 321 167 . . 87 676 583 469 557 88 822 100 724 889 80 464 82 107 92 291 282 Remotely . | . . . . . . . . . . . . . . . . . . . . . . . . . . Salvage Created 12690 | 106 261 402 507 1562 655 25 . . 132 1171 232 320 668 390 1216 . 218 520 236 1080 569 1294 108 306 712 Parts 582 | 5 15 23 28 100 25 1 . . 2 50 16 18 41 22 60 . 9 10 8 48 13 34 2 17 35 Haulers Intercepted 7 | . . . . 3 . . . . . 1 . . . . 2 . . . . 1 . . . . . Recyclers Shooed 10 | . . . 3 2 . . . . . 1 . . . . 2 . . . . 1 . . . . 1 Parts Field Recycled . | . . . . . . . . . . . . . . . . . . . . . . . . . . Retrieved Matter . | . . . . . . . . . . . . . . . . . . . . . . . . . . Parts Self-Destructed 54 | . . 5 . . . 4 4 . 6 . . . . . . . 8 . 4 . 1 6 2 14 . Prevented 52 | . . . . . . 2 . . . . . . . . . . . . 4 . 12 28 . 6 . Kills | -11 -10 -10 -8 -8 -7 -7 -7 -7 -6 -6 -6 -6 -6 -6 -5 -5 -5 -5 -4 -4 -4 -4 -4 -3 -3 ------- Run | Jun Mat Sub Mat Sto Fac Low Low Dat Pro Fac Ext Cet Arc Hub Fac Upp Upp War Pro Fac Upp Upp Zhi Pro Res Combat Hostiles Destroyed 184 | . 7 8 10 26 18 1 . . 2 17 3 5 4 5 13 . 2 11 3 9 7 18 . 8 7 Guns 127 | . 7 8 10 26 4 1 . . 2 13 3 5 4 5 13 . 2 7 1 9 . . . 2 5 Cannons 21 | . . . . . . . . . . . . . . . . . . . 2 . 6 10 . 1 2 AOE 29 | . . . . . 14 . . . . 4 . . . . . . . 4 . . . 2 . 5 . Classes Destroyed 19 | 2 2 1 4 4 . . . . . 1 1 . . 1 . . 1 2 . . . . . . . Worker 9 | . . . . 2 . . . . . . . . . 2 3 . . . . 1 . . . . 1 Builder 6 | . . . . 1 2 . . . . . . . . . 1 . . . . 2 . . . . . Tunneler 3 | 1 . . . . 1 . . . . . . . . . . . . . . . . . . . 1 Hauler 7 | . . . . 3 . . . . . 1 . . . . 2 . . . . 1 . . . . . Recycler 12 | 1 1 . . 2 1 . . . . 3 . . . . 1 . . . . 2 . . . . 1 Operator 12 | . . . . 2 . . . . . . 1 . 9 . . . . . . . . . . . . Watcher 1 | . . . . . . . . . . . . . . 1 . . . . . . . . . . . Swarmer 29 | . 3 . . 4 4 1 . . . 8 . . . . . . . 2 . . . 4 . 3 . Grunt 63 | . 4 . 5 11 10 . . . 1 5 1 . . 1 3 . . 2 . 5 4 8 . 3 . Brawler 10 | . . . 1 . 1 . . . 1 . . . . 2 . . . 2 . 1 . 2 . . . Duelist 9 | . . . 1 . 2 . . . . 1 . . . . 1 . . . . . 2 2 . . . Sentry 27 | . . . 2 11 . . . . . . 1 . 4 1 1 . . . 1 . 1 2 . . 3 Demolisher 1 | . . . . . . . . . . . . . . . . . . 1 . . . . . . . Hunter 13 | . . . 1 . 1 . . . . 2 . 1 . . 1 . . 2 2 . . . . . 3 Programmer 18 | . . . . . . . . . . 1 . 2 . 1 7 . 1 . . 3 . . . 2 1 Behemoth 2 | . . . . . . . . . . . 1 . . . . . 1 . . . . . . . . Cetus Guard 2 | . . . . . . . . . . . . 2 . . . . . . . . . . . . . Executioner 2 | . . . . . . . . . . . . . . . . . . 2 . . . . . . . Subdweller 8 | . . 8 . . . . . . . . . . . . . . . . . . . . . . . Tinkerer 1 | . . . . . . . . . . . . . . . . . 1 . . . . . . . . Best Kill Streak 18 | 1 3 3 3 4 18 1 . . 2 5 1 1 3 3 5 . 2 9 2 5 6 13 . 6 6 Combat Bots Only 16 | . 3 3 3 4 16 1 . . 2 4 1 1 2 2 2 . 2 9 2 4 6 13 . 6 5 Max Kills in Single Turn 5 | 1 1 1 1 2 5 1 . . 1 3 1 1 1 3 2 . 1 2 1 2 1 1 . 1 2 Gunslinging 1 | . . . . . . . . . . . . . . . . . . 1 . . . . . . . Exploded 5 | . . . . . 5 . . . . 3 . . . . . . . 2 . . . 1 . 1 . Melee . | . . . . . . . . . . . . . . . . . . . . . . . . . . Uniques/NPCs Destroyed . | . . . . . . . . . . . . . . . . . . . . . . . . . . Combat | -11 -10 -10 -8 -8 -7 -7 -7 -7 -6 -6 -6 -6 -6 -6 -5 -5 -5 -5 -4 -4 -4 -4 -4 -3 -3 -------- Run | Jun Mat Sub Mat Sto Fac Low Low Dat Pro Fac Ext Cet Arc Hub Fac Upp Upp War Pro Fac Upp Upp Zhi Pro Res Damage Taken 24311 | . 397 889 1315 1598 838 26 . . 367 2738 1031 912 769 1048 1707 . 994 1043 543 384 796 2862 . 301 3753 Core 3021 | . 97 68 351 110 36 . . . 57 199 48 66 21 86 55 . 38 121 24 76 90 130 . 18 1330 Absorbed by Shields 3844 | . . . . . . . . . . 110 216 307 156 12 202 . 357 335 171 402 251 384 . 316 625 Reduced by Siege Mode 1006 | . . . . . . . . . . . . 31 . . 39 . 75 57 24 31 91 371 . 5 282 Redirected to Shielding 130 | . . . . . . . . . . . . . . . . . . . . . . . . . 130 Ignored by Resistances 43 | . . . . . . . . . . . 22 21 . . . . . . . . . . . . . Regen/Repaired (Parts) 867 | . 55 . 83 . . . . . . . . . . . . . . . . 729 . . . . . Core Remaining (%) 62 | 100 . 34 . 16 . . . . 86 . . . . 50 . . . . 76 . . . . 72 . Volleys Fired 778 | 4 33 42 61 107 24 1 . . 12 76 33 45 67 22 65 . 24 21 6 31 15 34 . 15 40 Largest 3 | 2 2 2 2 2 2 2 . . 2 2 2 2 2 2 2 . 2 2 2 2 2 2 . 2 3 Hottest 167 | 70 70 40 46 46 62 46 . . 48 56 56 56 56 63 70 . 70 76 162 76 162 162 . 162 167 Shots Fired 1488 | 8 66 84 91 212 43 2 . . 24 145 65 81 119 44 128 3 42 37 12 61 31 66 . 20 104 Gun 1346 | 8 66 84 91 212 37 2 . . 24 143 65 81 119 44 128 3 42 33 4 61 . . . 7 92 Cannon 121 | . . . . . . . . . . . . . . . . . . . 8 . 31 66 . 4 12 Launcher 21 | . . . . . 6 . . . . 2 . . . . . . . 4 . . . . . 9 . Special . | . . . . . . . . . . . . . . . . . . . . . . . . . . Kinetic 1311 | 4 35 84 91 212 37 2 . . 24 143 65 81 119 44 128 3 42 33 4 61 . . . 7 92 Thermal 38 | 4 31 . . . . . . . . . . . . . . . . . . . . . . . 3 Explosive 21 | . . . . . 6 . . . . 2 . . . . . . . 4 . . . . . 9 . Electromagnetic 118 | . . . . . . . . . . . . . . . . . . . 8 . 31 66 . 4 9 Robot Hit Streak 48 | 2 8 10 10 26 16 11 . . 10 27 48 10 31 18 23 . 29 15 12 17 31 39 . 6 18 Robot Miss Streak 3 | 1 3 1 2 2 2 . . . 2 3 3 2 1 1 2 . 1 2 . 2 1 2 . 2 3 Penetration Max 1 | . . . . . . . . . . . . . . 1 1 . . 1 . 1 . . . . 1 Secondary Targets 16 | . 3 . 2 . 1 . . . . 1 . 1 . . . . . 3 . 3 . . . . 2 Max Gunslinging Chain 1 | . 1 . 1 . 1 . . . . 1 . 1 . . . . . 1 . 1 . . . . 1 Shots Hit Robots 1185 | 5 42 69 70 168 37 2 . . 19 117 55 63 106 34 96 . 37 29 11 51 25 52 3 13 81 Core Hits 545 | 3 15 20 22 72 38 2 . . 6 54 20 20 43 20 38 . 9 20 6 47 15 26 1 20 28 Critical Kills 11 | . . . . 1 . . . . . . . . . . 4 . . 3 . 2 . . . . 1 Critical Parts Destroyed 23 | . . . 1 1 . . . . . . 1 1 1 . 9 . 2 4 . 1 . . . . 2 Critical Strikes 44 | . 2 2 1 2 . . . . . . 1 1 1 . 13 . 5 8 . 3 1 . . . 4 Burn 2 | . 2 . . . . . . . . . . . . . . . . . . . . . . . . Destroy 41 | . . 2 1 2 . . . . . . 1 1 1 . 13 . 5 8 . 3 . . . . 4 Corrupt 1 | . . . . . . . . . . . . . . . . . . . . . 1 . . . . Melee Attacks 74 | . . . . 16 . 1 . . . 27 . . . 3 1 . 3 19 . . . . 4 . . Impact 74 | . . . . 16 . 1 . . . 27 . . . 3 1 . 3 19 . . . . 4 . . Slashing . | . . . . . . . . . . . . . . . . . . . . . . . . . . Piercing . | . . . . . . . . . . . . . . . . . . . . . . . . . . Sneak Attacks . | . . . . . . . . . . . . . . . . . . . . . . . . . . Combat Hostiles . | . . . . . . . . . . . . . . . . . . . . . . . . . . Follow-up Attacks . | . . . . . . . . . . . . . . . . . . . . . . . . . . Damage Inflicted 29372 | 67 469 894 1069 2542 1765 52 . . 305 2384 1150 1248 2066 1076 2908 . 1134 1553 405 1854 953 1863 282 1097 2236 Guns 21052 | 53 466 894 1044 2491 473 30 . . 305 2081 1148 1248 2066 745 2641 . 997 828 115 1523 . . . 166 1738 Cannons 3258 | . . . . . . . . . . . . . . . . . . . 290 . 811 1672 . 97 388 Explosions 4308 | . . . . . 1291 . . . . 295 . . . 260 248 . . 725 . 322 142 191 . 834 . Melee 366 | . . . . . . . . . . . . . . . . . 84 . . . . . 282 . . Ramming 388 | 14 3 . 25 51 1 22 . . . 8 2 . . 71 19 . 53 . . 9 . . . . 110 Kinetic 20726 | 15 178 894 1044 2491 473 30 . . 305 2081 1148 1248 2066 745 2641 . 997 828 115 1523 . . . 166 1738 Thermal 806 | 38 288 . . . . . . . . . . . . . 81 . . . . . 142 191 . . 66 Explosive 3312 | . . . . . 1291 . . . . 295 . . . . 167 . . 725 . . . . . 834 . Electromagnetic 3774 | . . . . . . . . . . . . . . 260 . . . . 290 322 811 1672 . 97 322 Impact 366 | . . . . . . . . . . . . . . . . . 84 . . . . . 282 . . Slashing . | . . . . . . . . . . . . . . . . . . . . . . . . . . Piercing . | . . . . . . . . . . . . . . . . . . . . . . . . . . Highest Corruption 37 | . . . . . . . . . . 16 22 35 35 37 30 30 33 33 1 4 4 21 21 21 3 Average Corruption 17 | . . . . . . . . . . 4 17 32 30 31 13 30 32 5 1 3 2 13 21 21 2 Corruption Purged 24 | . . . . . . . . . . 4 3 . 14 . . . . . . . 3 . . . . Corruption Blocked . | . . . . . . . . . . . . . . . . . . . . . . . . . . Effects 376 | . . . . . . . . . . 6 59 32 47 19 48 30 46 7 2 18 7 24 7 23 1 Message Errors 88 | . . . . . . . . . . 2 14 9 11 3 16 7 9 2 1 2 2 4 3 3 . Matter Fused 76 | . . . . . . . . . . 1 15 6 5 5 6 8 8 1 . 2 2 5 3 8 1 Heat Flow Errors 43 | . . . . . . . . . . . 9 2 2 3 6 2 3 1 . 3 1 7 1 3 . Energy Discharges 39 | . . . . . . . . . . . 8 4 2 1 6 5 5 1 . 3 1 2 . 1 . Parts Rejected 2 | . . . . . . . . . . . . . 1 . . . . . . . . 1 . . . Parts Fused 7 | . . . . . . . . . . . 1 3 . . . . . . 1 1 . . . 1 . Data Loss (minor) 46 | . . . . . . . . . . . 5 2 7 1 7 3 11 . . 3 . 3 . 4 . Data Loss (major) 13 | . . . . . . . . . . 1 2 1 . 1 3 1 2 1 . . . . . 1 . Misfires 14 | . . . . . . . . . . 1 1 . 1 4 1 3 . . . 1 1 . . 1 . Alerts 8 | . . . . . . . . . . 1 1 . 2 . . 1 2 . . 1 . . . . . Misdirections 2 | . . . . . . . . . . . 2 . . . . . . . . . . . . . . Weapon Failures 38 | . . . . . . . . . . . 1 5 16 1 3 . 6 1 . 2 . 2 . 1 . Overload Shots . | . . . . . . . . . . . . . . . . . . . . . . . . . . Overflow Damage 357 | . . . . . 9 8 . . . . . . . 34 31 . 97 . 27 . 22 29 60 40 . Projectiles 95 | . . . . . . . . . . . . . . . . . . . 27 . 22 29 . 17 . Explosions 82 | . . . . . 9 . . . . . . . . 19 31 . . . . . . . . 23 . Melee 180 | . . . . . . 8 . . . . . . . 15 . . 97 . . . . . 60 . . Knockbacks 4 | . . . . 1 . . . . . 1 . . . . 1 . 1 . . . . . . . . Impact 4 | . . . . 1 . . . . . 1 . . . . 1 . 1 . . . . . . . . Kinetic . | . . . . . . . . . . . . . . . . . . . . . . . . . . Secondary . | . . . . . . . . . . . . . . . . . . . . . . . . . . Self-Inflicted Damage 590 | . . . . . 151 . . . . . . . . 98 84 . . . . 16 64 158 . . 19 Shots 8 | . . . . . 2 . . . . . . . . 1 1 . . . . 1 1 2 . . . Rammed 35 | 3 1 . 1 7 . 1 . . . 1 . . . 4 2 . 4 . . 1 . . . . 10 Targets Rammed 40 | 3 1 . 2 8 1 1 . . . 1 1 . . 4 2 . 4 . . 1 . . . . 11 Kicked 2 | . . . 1 1 . . . . . . . . . . . . . . . . . . . . . Crushed 3 | . . . . . 1 . . . . . 1 . . . . . . . . . . . . . 1 Highest Temperature 571 | 50 180 . 6 29 21 . . . 20 20 260 243 219 269 438 204 235 332 192 254 289 571 163 249 348 Average Temperature 92 | 24 79 . 2 8 7 . . . 8 10 82 118 94 112 73 97 116 142 117 105 126 193 88 118 98 Received Heat Transfer 3909 | . 84 144 621 729 207 . . . 81 189 235 26 98 201 162 . 339 60 18 65 95 371 . 39 145 Effects 15 | . . . . . . . . . . . . . . . 6 . 1 1 . . . 7 . . . Shutdowns 3 | . . . . . . . . . . . . . . . 2 . . . . . . 1 . . . Energy Bleed 3 | . . . . . . . . . . . . . . . . . 1 . . . . 2 . . . Interference 4 | . . . . . . . . . . . . . . . 3 . . 1 . . . . . . . Matter Decay 1 | . . . . . . . . . . . . . . . 1 . . . . . . . . . . Short Circuit 2 | . . . . . . . . . . . . . . . . . . . . . . 2 . . . Damage (minor) 2 | . . . . . . . . . . . . . . . . . . . . . . 2 . . . Siege Activations 18 | . . . . . . . . . . . . 1 . . 2 . 2 1 2 5 1 2 . 1 1 Total Turns 493 | . . . . . . . . . . . . 32 . . 40 . 66 28 15 90 37 120 . 8 57 Longest Duration 106 | . . . . . . . . . . . . 32 . . 28 . 65 28 11 32 37 106 . 8 57 Robots Corrupted 7 | . . . . . . . . . . . . . . . . . . . . . 1 6 . . . Combat Hostiles 7 | . . . . . . . . . . . . . . . . . . . . . 1 6 . . . Parts Fried 36 | . . . . . . . . . . . . 2 . 1 . . . . 4 5 7 15 . . 2 Impact Corruptions 12 | . . . 1 . . 2 . . . . . . . 1 . . 7 . . . . . 1 . . Robots Melted . | . . . . . . . . . . . . . . . . . . . . . . . . . . Combat Hostiles . | . . . . . . . . . . . . . . . . . . . . . . . . . . Parts Melted 2 | . 1 . . . . . . . . . . 1 . . . . . . . . . . . . . Heat Transferred 1510 | 111 999 . . . . . . . . . . . . . 50 . . . . . 100 150 . . 100 Parts Sabotaged 1 | . . . . . . . . . . . . . . . . . . 1 . . . . . . . Parts Stolen . | . . . . . . . . . . . . . . . . . . . . . . . . . . Parts Stripped . | . . . . . . . . . . . . . . . . . . . . . . . . . . Power Chain Reactions 3 | . . . . . . . . . . . . . . . . . . . . . 1 2 . . . Missiles Intercepted . | . . . . . . . . . . . . . . . . . . . . . . . . . . Alert | -11 -10 -10 -8 -8 -7 -7 -7 -7 -6 -6 -6 -6 -6 -6 -5 -5 -5 -5 -4 -4 -4 -4 -4 -3 -3 ------- Run | Jun Mat Sub Mat Sto Fac Low Low Dat Pro Fac Ext Cet Arc Hub Fac Upp Upp War Pro Fac Upp Upp Zhi Pro Res Peak Influence 786 | 10 169 . 157 582 523 . . . . 419 211 314 256 369 447 . . . . 786 . . . . 137 Initial 450 | . 6 . . 27 235 . . . . 187 30 55 66 23 180 . . . . 450 . . . . . Average 203 | 4 75 . 51 364 258 . . . . 256 76 135 145 74 267 . . . . 413 . . . . 24 Maximum Alert Level 3 | . . . . 2 2 . . . . 2 1 1 1 1 2 . . . . 3 . . . . . Low Security (%) 53 | 100 100 . 100 12 35 . . . . 23 92 81 60 93 32 . . . . . . . . . 100 Level 1 34 | . . . . 51 36 . . . . 73 7 18 39 6 56 . . . . 62 . . . . . Level 2 11 | . . . . 36 27 . . . . 2 . . . . 10 . . . . 35 . . . . . Level 3 . | . . . . . . . . . . . . . . . . . . . . 1 . . . . . Level 4 . | . . . . . . . . . . . . . . . . . . . . . . . . . . Level 5 . | . . . . . . . . . . . . . . . . . . . . . . . . . . High Security . | . . . . . . . . . . . . . . . . . . . . . . . . . . Max Security . | . . . . . . . . . . . . . . . . . . . . . . . . . . Squads Dispatched 33 | . 2 . . 6 2 . . . . 4 1 . . 4 6 . . . . 5 . 1 . . 2 Investigation 7 | . 1 . . 1 1 . . . . 1 . . . . 1 . . . . 2 . . . . . Extermination 9 | . . . . . 1 . . . . 2 . . . 1 2 . . . . 2 . . . . 1 Reinforcement 13 | . 1 . . 2 . . . . . 1 1 . . 3 3 . . . . 1 . . . . 1 Assault 3 | . . . . 2 . . . . . . . . . . . . . . . . . 1 . . . Garrison 1 | . . . . 1 . . . . . . . . . . . . . . . . . . . . . Intercept . | . . . . . . . . . . . . . . . . . . . . . . . . . . Searches Triggered . | . . . . . . . . . . . . . . . . . . . . . . . . . . Data Miner Redirects 4 | . . . . . . . . . . 1 . . . . 1 . . . . 2 . . . . . Construction Impeded 3 | . . . . . . . . . . . . . . 1 . . . . . 1 . . . . 1 Haulers Reinforced 2 | . . . . . . . . . . 1 . . . . 1 . . . . . . . . . . Active Scanning Responses . | . . . . . . . . . . . . . . . . . . . . . . . . . . Cargo Convoy Interrupts 1 | . . . . . . . . . . . . . . . . . . . . . . . . . 1 Stealth | -11 -10 -10 -8 -8 -7 -7 -7 -7 -6 -6 -6 -6 -6 -6 -5 -5 -5 -5 -4 -4 -4 -4 -4 -3 -3 --------- Run | Jun Mat Sub Mat Sto Fac Low Low Dat Pro Fac Ext Cet Arc Hub Fac Upp Upp War Pro Fac Upp Upp Zhi Pro Res Distress Signals 12 | . 2 . 1 1 . . . . . . 2 2 . 1 . . . . . 3 . . . . . Communications Jammed 5 | . . . . . 2 . . . 1 2 . . . . . . . . . . . . . . . Distress Signals 4 | . . . . . 2 . . . . 2 . . . . . . . . . . . . . . . Times Spotted 366 | . 15 10 12 38 25 1 . . 4 22 24 15 24 24 19 . 2 38 7 19 7 24 . 8 28 Peak Tracking Total 18 | . 4 2 5 5 12 1 . . 2 4 4 5 1 16 4 . 2 9 2 6 6 12 . 3 18 Tactical Retreats 11 | . 1 . . . 2 . . . . 2 1 . . . 1 . . . 1 . . 3 . . . Traps | -11 -10 -10 -8 -8 -7 -7 -7 -7 -6 -6 -6 -6 -6 -6 -5 -5 -5 -5 -4 -4 -4 -4 -4 -3 -3 ------- Run | Jun Mat Sub Mat Sto Fac Low Low Dat Pro Fac Ext Cet Arc Hub Fac Upp Upp War Pro Fac Upp Upp Zhi Pro Res Traps Triggered 20 | . 1 1 . 3 . . . . . 2 2 . . 4 4 . . 1 . 2 . . . . . Indirectly . | . . . . . . . . . . . . . . . . . . . . . . . . . . Trap Hack Attempts . | . . . . . . . . . . . . . . . . . . . . . . . . . . Triggered . | . . . . . . . . . . . . . . . . . . . . . . . . . . Disarmed . | . . . . . . . . . . . . . . . . . . . . . . . . . . Reprogrammed . | . . . . . . . . . . . . . . . . . . . . . . . . . . Reused . | . . . . . . . . . . . . . . . . . . . . . . . . . . Traps Extracted . | . . . . . . . . . . . . . . . . . . . . . . . . . . Installed . | . . . . . . . . . . . . . . . . . . . . . . . . . . Triggered 12 | . . . . . . 3 . . . . . . . . . . . 6 . . . 1 . 2 . Machines | -11 -10 -10 -8 -8 -7 -7 -7 -7 -6 -6 -6 -6 -6 -6 -5 -5 -5 -5 -4 -4 -4 -4 -4 -3 -3 ---------- Run | Jun Mat Sub Mat Sto Fac Low Low Dat Pro Fac Ext Cet Arc Hub Fac Upp Upp War Pro Fac Upp Upp Zhi Pro Res Machines Disabled 54 | . . . 1 2 2 1 . . . . 2 2 2 6 11 . 1 . . 22 . 1 1 . . Max in Single Turn 7 | . . . 1 1 1 1 . . . . . . 1 5 7 . 1 . . 6 . 1 1 . . Garrison Access 1 | . . . . . 1 . . . . . . . . . . . . . . . . . . . . Network Hub 1 | . . . . . . . . . . . . . . 1 . . . . . . . . . . . Machines Repaired . | . . . . . . . . . . . . . . . . . . . . . . . . . . Machines Sabotaged . | . . . . . . . . . . . . . . . . . . . . . . . . . . Overloaded Fab Kills . | . . . . . . . . . . . . . . . . . . . . . . . . . . Hacking | -11 -10 -10 -8 -8 -7 -7 -7 -7 -6 -6 -6 -6 -6 -6 -5 -5 -5 -5 -4 -4 -4 -4 -4 -3 -3 --------- Run | Jun Mat Sub Mat Sto Fac Low Low Dat Pro Fac Ext Cet Arc Hub Fac Upp Upp War Pro Fac Upp Upp Zhi Pro Res Machines Accessed 45 | . 5 . 4 7 5 . . 3 . 3 2 1 . 4 3 . . . . 4 . . 4 . . Terminals 29 | . 4 . 3 7 3 . . . . 2 2 1 . 4 1 . . . . 2 . . . . . Fabricators 3 | . . . . . 1 . . . . . . . . . 1 . . . . 1 . . . . . Repair Stations 4 | . 1 . 1 . . . . . . . . . . . 1 . . . . 1 . . . . . Recycling Units . | . . . . . . . . . . . . . . . . . . . . . . . . . . Scanalyzers . | . . . . . . . . . . . . . . . . . . . . . . . . . . Garrison Access 2 | . . . . . 1 . . . . 1 . . . . . . . . . . . . . . . Total Hacks 142 | . 11 . 11 14 12 . . 25 . 7 4 1 . 10 8 . . . . 22 . . 17 . . Successful 82 | . 8 . 4 6 4 . . 25 . 2 1 1 . 2 3 . . . . 9 . . 17 . . Failed 60 | . 3 . 7 8 8 . . . . 5 3 . . 8 5 . . . . 13 . . . . . Catastrophic 7 | . . . . 1 1 . . . . 2 1 . . 1 1 . . . . . . . . . . Database Lockouts . | . . . . . . . . . . . . . . . . . . . . . . . . . . Manual 30 | . 5 . 3 3 2 . . . . 5 1 . . 1 . . . 1 . 9 . . . . . Terminals 71 | . 9 . 8 14 6 . . . . 5 4 1 . 10 2 . . . . 12 . . . . . Fabricators 11 | . . . . . 4 . . . . . . . . . 2 . . . . 5 . . . . . Repair Stations 14 | . 2 . 3 . . . . . . . . . . . 4 . . . . 5 . . . . . Recycling Units . | . . . . . . . . . . . . . . . . . . . . . . . . . . Scanalyzers . | . . . . . . . . . . . . . . . . . . . . . . . . . . Garrison Access 4 | . . . . . 2 . . . . 2 . . . . . . . . . . . . . . . Terminal Hacks 67 | . 6 . 2 6 1 . . 25 . 2 1 1 . 2 . . . . . 4 . . 17 . . Record 11 | . . . . . . . . 6 . . . . . . . . . . . . . . 5 . . Part Schematic 15 | . . . . . . . . 11 . . . . . . . . . . . . . . 4 . . Robot Schematic 5 | . . . . . . . . 5 . . . . . . . . . . . . . . . . . Robot Analysis 9 | . 4 . 1 . . . . . . . . . . . . . . . . . . . 4 . . Prototype ID Bank 8 | . . . . 1 . . . 3 . . . . . . . . . . . . . . 4 . . Open Door 5 | . . . . 4 . . . . . . . 1 . . . . . . . . . . . . . Branch Access Points 2 | . . . . . . . . . . 1 . . . . . . . . . 1 . . . . . Repair Station Index 1 | . . . . . . . . . . . . . . . . . . . . 1 . . . . . Alert Level 1 | . . . . . . . . . . . 1 . . . . . . . . . . . . . . Unreport Threat 2 | . . . . . . . . . . 1 . . . . . . . . . 1 . . . . . Locate Traps 3 | . . . . 1 1 . . . . . . . . 1 . . . . . . . . . . . Recall Investigation 1 | . . . . . . . . . . . . . . 1 . . . . . . . . . . . Recall Reinforcements 1 | . . . . . . . . . . . . . . . . . . . . 1 . . . . . Hauler Manifests 1 | . 1 . . . . . . . . . . . . . . . . . . . . . . . . Registered Components 1 | . . . 1 . . . . . . . . . . . . . . . . . . . . . . Zone Layout 1 | . 1 . . . . . . . . . . . . . . . . . . . . . . . . Fabricator Hacks 6 | . . . . . 2 . . . . . . . . . 1 . . . . 3 . . . . . Network Status 3 | . . . . . 1 . . . . . . . . . 1 . . . . 1 . . . . . Load Schematic 1 | . . . . . . . . . . . . . . . . . . . . 1 . . . . . Build 2 | . . . . . 1 . . . . . . . . . . . . . . 1 . . . . . Repair Station Hacks 8 | . 2 . 2 . . . . . . . . . . . 2 . . . . 2 . . . . . Scan Component 5 | . 1 . 1 . . . . . . . . . . . 2 . . . . 1 . . . . . Repair 3 | . 1 . 1 . . . . . . . . . . . . . . . . 1 . . . . . Recycling Unit Hacks . | . . . . . . . . . . . . . . . . . . . . . . . . . . Scanalyzer . | . . . . . . . . . . . . . . . . . . . . . . . . . . Garrison Access Hacks 1 | . . . . . 1 . . . . . . . . . . . . . . . . . . . . Seal Access 1 | . . . . . 1 . . . . . . . . . . . . . . . . . . . . Unauthorized Hacks . | . . . . . . . . . . . . . . . . . . . . . . . . . . Terminals . | . . . . . . . . . . . . . . . . . . . . . . . . . . Fabricators . | . . . . . . . . . . . . . . . . . . . . . . . . . . Repair Stations . | . . . . . . . . . . . . . . . . . . . . . . . . . . Recycling Units . | . . . . . . . . . . . . . . . . . . . . . . . . . . Scanalyzers . | . . . . . . . . . . . . . . . . . . . . . . . . . . Garrison Access . | . . . . . . . . . . . . . . . . . . . . . . . . . . Data Cores Recovered 1 | . . . . 1 . . . . . . . . . . . . . . . . . . . . . Used . | . . . . . . . . . . . . . . . . . . . . . . . . . . Hacking Detections 28 | . 3 . 3 3 4 . . . . 2 2 . . 4 3 . . . . 4 . . . . . Full Trace Events 6 | . . . . 1 1 . . . . 1 . . . . 1 . . . . 2 . . . . . Feedback Events . | . . . . . . . . . . . . . . . . . . . . . . . . . . Feedback Blocked . | . . . . . . . . . . . . . . . . . . . . . . . . . . Robot Schematics Acquired 5 | . . . . . . . . 5 . . . . . . . . . . . . . . . . . Robots Built . | . . . . . . . . . . . . . . . . . . . . . . . . . . Authchips . | . . . . . . . . . . . . . . . . . . . . . . . . . . Time . | . . . . . . . . . . . . . . . . . . . . . . . . . . Total Robot Build Rating . | . . . . . . . . . . . . . . . . . . . . . . . . . . Part Schematics Acquired 15 | . . . . . . . . 11 . . . . . . . . . . . . . . 4 . . Parts Built 2 | . . . . . 1 . . . . . . . . . . . . . . 1 . . . . . Authchips . | . . . . . . . . . . . . . . . . . . . . . . . . . . Time 182 | . . . . . 106 . . . . . . . . . . . . . . 76 . . . . . Total Part Build Rating 11 | . . . . . 6 . . . . . . . . . . . . . . 5 . . . . . Parts Repaired 3 | . 1 . 1 . . . . . . . . . . . . . . . . 1 . . . . . Time 160 | . 26 . 26 . . . . . . . . . . . . . . . . 108 . . . . . Parts Recycled . | . . . . . . . . . . . . . . . . . . . . . . . . . . Recycled Matter . | . . . . . . . . . . . . . . . . . . . . . . . . . . Retrieved Matter . | . . . . . . . . . . . . . . . . . . . . . . . . . . Retrieved Components . | . . . . . . . . . . . . . . . . . . . . . . . . . . Parts Scanalyzed . | . . . . . . . . . . . . . . . . . . . . . . . . . . Part Schematics Acquired . | . . . . . . . . . . . . . . . . . . . . . . . . . . Parts Damaged . | . . . . . . . . . . . . . . . . . . . . . . . . . . Bothacking | -11 -10 -10 -8 -8 -7 -7 -7 -7 -6 -6 -6 -6 -6 -6 -5 -5 -5 -5 -4 -4 -4 -4 -4 -3 -3 ------------ Run | Jun Mat Sub Mat Sto Fac Low Low Dat Pro Fac Ext Cet Arc Hub Fac Upp Upp War Pro Fac Upp Upp Zhi Pro Res Used RIF Installer . | . . . . . . . . . . . . . . . . . . . . . . . . . . Robots Hacked . | . . . . . . . . . . . . . . . . . . . . . . . . . . Non-combat . | . . . . . . . . . . . . . . . . . . . . . . . . . . Combat . | . . . . . . . . . . . . . . . . . . . . . . . . . . Robot Hacks Applied . | . . . . . . . . . . . . . . . . . . . . . . . . . . Relay Couplers Released . | . . . . . . . . . . . . . . . . . . . . . . . . . . Fabnet Peak Effective % . | . . . . . . . . . . . . . . . . . . . . . . . . . . Robots Rewired 15 | . . . . . . . . . . . 15 . . . . . . . . . . . . . . Allies Hacked . | . . . . . . . . . . . . . . . . . . . . . . . . . . Hacks Repelled . | . . . . . . . . . . . . . . . . . . . . . . . . . . Allies | -11 -10 -10 -8 -8 -7 -7 -7 -7 -6 -6 -6 -6 -6 -6 -5 -5 -5 -5 -4 -4 -4 -4 -4 -3 -3 -------- Run | Jun Mat Sub Mat Sto Fac Low Low Dat Pro Fac Ext Cet Arc Hub Fac Upp Upp War Pro Fac Upp Upp Zhi Pro Res Total Allies 26 | . . . . 2 . . . . 1 . 23 . . . . . . . . . . . . . . Largest Group 11 | . . . . 2 2 . . . 1 . 11 7 1 . . . . . . . . . . . . Highest-Rated Group 467 | . . . . 62 62 . . . 96 . 467 339 148 . . . . . . . . . . . . Highest-Rated Ally 159 | . . . . 31 31 . . . 96 . 159 159 148 . . . . . . . . . . . . Total Orders . | . . . . . . . . . . . . . . . . . . . . . . . . . . Ally Attacks 212 | . . . . . 19 . . . 5 . 114 73 1 . . . . . . . . . . . . Total Damage 4982 | . . . . . 313 . . . 147 . 2742 1759 21 . . . . . . . . . . . . Kills 36 | . . . . . 3 . . . 2 . 20 11 . . . . . . . . . . . . . Allies Corrupted 1 | . . . . . . . . . . . 1 . . . . . . . . . . . . . . Allies Melted 1 | . . . . . . . . . . . 1 . . . . . . . . . . . . . . Intel | -11 -10 -10 -8 -8 -7 -7 -7 -7 -6 -6 -6 -6 -6 -6 -5 -5 -5 -5 -4 -4 -4 -4 -4 -3 -3 ------- Run | Jun Mat Sub Mat Sto Fac Low Low Dat Pro Fac Ext Cet Arc Hub Fac Upp Upp War Pro Fac Upp Upp Zhi Pro Res Robot Analysis Total 9 | . 4 . 1 . . . . . . . . . . . . . . . . . . . 4 . . Derelict Logs Recovered 8 | . . 1 . . . 1 1 . 2 . . . . . . 1 . . 1 . . 1 . . . Drone Launches . | . . . . . . . . . . . . . . . . . . . . . . . . . . Drone Recoveries . | . . . . . . . . . . . . . . . . . . . . . . . . . . Exploration | -11 -10 -10 -8 -8 -7 -7 -7 -7 -6 -6 -6 -6 -6 -6 -5 -5 -5 -5 -4 -4 -4 -4 -4 -3 -3 ------------- Run | Jun Mat Sub Mat Sto Fac Low Low Dat Pro Fac Ext Cet Arc Hub Fac Upp Upp War Pro Fac Upp Upp Zhi Pro Res Turns Passed 18020 | 109 848 1188 677 1321 1155 471 312 119 249 1166 1219 516 639 327 1196 598 865 1125 557 917 439 582 288 550 587 Spaces Moved 8648 | 55 436 621 266 515 656 285 195 75 134 541 468 197 116 150 516 370 467 562 322 444 233 258 163 312 291 Core 38 | 7 . . 2 . . . . . . . . . . . . . . . . . . . . . 29 Treads 8425 | 48 436 621 138 456 656 285 195 75 134 541 468 197 116 150 516 370 467 562 322 444 233 258 163 312 262 Legs 185 | . . . 126 59 . . . . . . . . . . . . . . . . . . . . . Wheels . | . . . . . . . . . . . . . . . . . . . . . . . . . . Hover . | . . . . . . . . . . . . . . . . . . . . . . . . . . Flight . | . . . . . . . . . . . . . . . . . . . . . . . . . . Fastest Speed 50 | 50 160 160 120 120 156 160 160 160 160 152 156 160 160 160 160 160 160 160 160 160 160 160 160 160 50 Average Speed 161 | 146 160 164 168 153 157 160 160 160 160 158 192 169 160 160 160 160 160 160 160 160 160 160 160 160 149 Slowest Speed 400 | 160 160 260 400 190 160 160 160 160 160 160 245 245 160 160 160 160 160 160 160 160 160 160 160 160 160 Overloaded Moves . | . . . . . . . . . . . . . . . . . . . . . . . . . . Propulsion Burnouts . | . . . . . . . . . . . . . . . . . . . . . . . . . . Robots Hopped . | . . . . . . . . . . . . . . . . . . . . . . . . . . Cave-ins Triggered 2 | . . . . . . . . . . 2 . . . . . . . . . . . . . . . Exploration Rate (%) 44 | 5 67 31 25 55 16 52 45 68 29 14 70 71 86 23 21 55 63 67 56 14 48 43 60 59 9 Regions Visited 25 Branch Regions 18 Pre-discovered Areas 6 | . . . . . . . . 1 1 . . . . . . . . . 1 . . . 3 . . Known Exits Taken 6 | . . . . . 1 . . . . 1 . . . 1 1 . . . . 1 . . . 1 . Unknown Exits Taken 19 | 1 1 1 1 1 . 1 1 1 1 . 1 1 1 . . 1 1 1 1 . 1 1 1 . . Scrap Searched 20 | . . 4 . . . 1 1 . 3 . . . . . . 3 1 . 1 . 2 1 . 3 . Spaces Dug 59 | . . . . 10 . . . . . 29 . . . 2 1 . 2 15 . . . . . . . Terrain Destroyed 487 | . . . . 10 62 . . . . 35 . . . 165 28 4 3 38 4 22 12 32 . 45 27 Melee 51 | . . . . 10 . . . . . 23 . . . 2 1 . 2 13 . . . . . . . Projectile 85 | . . . . . . . . . . . . . . 1 18 4 1 7 4 22 . . . 2 26 AOE 350 | . . . . . 62 . . . . 12 . . . 162 9 . . 18 . . 12 32 . 43 . Terrain Rammed . | . . . . . . . . . . . . . . . . . . . . . . . . . . Walls Destroyed . | . . . . . . . . . . . . . . . . . . . . . . . . . . Machines Disabled . | . . . . . . . . . . . . . . . . . . . . . . . . . . Actions | -11 -10 -10 -8 -8 -7 -7 -7 -7 -6 -6 -6 -6 -6 -6 -5 -5 -5 -5 -4 -4 -4 -4 -4 -3 -3 --------- Run | Jun Mat Sub Mat Sto Fac Low Low Dat Pro Fac Ext Cet Arc Hub Fac Upp Upp War Pro Fac Upp Upp Zhi Pro Res Total 11167 | 72 534 700 411 820 730 294 195 74 147 678 724 299 434 188 760 376 526 720 352 592 268 371 184 343 375 Wait 926 | . 34 25 46 76 8 2 1 . . . 64 18 245 1 125 3 19 78 16 81 9 65 . 8 2 Move 8622 | 55 435 620 265 514 655 284 194 74 133 538 467 196 115 149 515 369 466 561 321 443 232 257 162 311 291 Hop . | . . . . . . . . . . . . . . . . . . . . . . . . . . Pick Up 137 | 4 13 2 14 15 12 . . . . 9 15 10 . . 11 1 . 7 . 7 4 2 2 1 8 Fast Attach 114 | 5 2 2 11 13 4 2 . . . 4 13 6 5 1 8 . 2 10 3 10 . 4 3 . 6 Attach 73 | 2 2 1 7 8 4 . . . 2 10 5 2 . 3 4 . . 1 . 3 2 7 5 . 5 Detach 30 | . 1 1 1 1 2 . . . . 1 2 2 . . 6 . . . . 1 . 1 7 . 4 Swap 101 | . 3 1 3 25 11 2 . . . 6 2 2 . 3 8 2 5 7 4 2 4 . 1 7 3 Drop 156 | . 10 3 1 37 9 1 . . . 4 11 18 2 2 15 1 2 16 2 13 2 1 . 1 5 Fire 778 | 4 33 42 61 107 24 1 . . 12 76 33 45 67 22 65 . 24 21 6 31 15 34 . 15 40 Melee 74 | . . . . 16 . 1 . . . 27 . . . 3 1 . 3 19 . . . . 4 . . Ram 7 | . . . . . . . . . . . . . . . . . . . . . . . . . 7 Kick 2 | . . . 1 1 . . . . . . . . . . . . . . . . . . . . . Crush 30 | 2 1 . 1 7 1 1 . . . 1 1 . . 4 2 . 4 . . 1 . . . . 4 Escape Stasis 6 | . . . . . . . . . . 2 4 . . . . . . . . . . . . . . Rewire 108 | . . . . . . . . . . . 107 . . . . . 1 . . . . . . . . Trap . | . . . . . . . . . . . . . . . . . . . . . . . . . . Miscellaneous 3 | . . 3 . . . . . . . . . . . . . . . . . . . . . . . Route ------- -11/Junkyard -10/Materials (discovered 3 exits: [*Mat] / [*Min] / [*Sub]) -10/Subcaves -8/Materials (discovered 2 exits: *Fac / *Sto) -8/Storage -7/Factory (discovered 2 exits: *Fac / *Low) -7/Lower Caves -7/Lower Caves -7/Data Miner -6/Proximity Caves -6/Factory (discovered 5 exits: Fac / Low x2 / *Ext x2) -6/Extension (discovered 2 exits: *Fac / *Cet) -6/Cetus (discovered 2 exits: *Fac / [*Arc]) -6/Archives (discovered 3 exits: *Fac / *Hub x2) -6/Hub_04(d) -5/Factory (discovered 2 exits: *Fac / *Upp) -5/Upper Caves -5/Upper Caves (discovered 2 exits: *Fac / *War) -5/Warlord -4/Proximity Caves -4/Factory (discovered 4 exits: Res / *Upp x2 / Arm) -4/Upper Caves -4/Upper Caves -4/Zhirov -3/Proximity Caves -3/Research History --------- Turn | Location | Event 7 | -11/Junkyard | Discovered new exit (range 16) 110 | -11/Junkyard | Entered Materials 301 | -10/Materials | Build established: Mutant 459 | -10/Materials | Repaired Lgt. Treads 496 | -10/Materials | Discovered new exit (range 3) 788 | -10/Materials | Discovered new exit (range 16) 948 | -10/Materials | Discovered new exit (range 8) 958 | -10/Materials | Entered Subcaves 971 | -10/Subcaves | Discovered new exit (range 6) 1145 | -10/Subcaves | Core integrity fell below 50% 1535 | -10/Subcaves | Learned 2 Materials zone layouts 1595 | -10/Subcaves | Disturbed a concealed Subdweller 2146 | -10/Subcaves | Entered Materials 2146 | -8/Materials | Evolved 4 slots: Propulsion x2, Utility x2 2262 | -8/Materials | Repaired Assault Rifle 2633 | -8/Materials | Core integrity fell below 50% 2685 | -8/Materials | Lost 9 parts (1p4n2u2w) 2717 | -8/Materials | Discovered new exit (range 9) 2775 | -8/Materials | Discovered new exit (range 11) 2823 | -8/Materials | Entered Storage 3002 | -8/Storage | Build established: Scavenger-Mutant 3551 | -8/Storage | Core integrity fell below 20% 4037 | -8/Storage | Discovered new exit (range 15) 4068 | -8/Storage | Garrison activated, responded to threat 4133 | -8/Storage | Met a pair of Derelict thieves 4144 | -8/Storage | Entered Factory 4144 | -7/Factory | Accompanied by 2 allies 4144 | -7/Factory | Evolved 2 slots: Power x1, Utility x1 4293 | -7/Factory | Discovered new exit (range 4) 4300 | -7/Factory | Identified exit to Lower Caves 4339 | -7/Factory | Build established: Mutant 4568 | -7/Factory | Fabricated Imp. Transmission Jammer? 4791 | -7/Factory | Discovered new exit (range 11) 5014 | -7/Factory | Destroyed 16 combat bots 5299 | -7/Factory | Entered Lower Caves 5640 | -7/Lower Caves | Found Alien Artifact 5640 | -7/Lower Caves | Identified Dimensional Node Initializer 5640 | -7/Lower Caves | Initialized slip node 5757 | -7/Lower Caves | Discovered new exit (range 8) 5758 | -7/Lower Caves | Encountered a Warlord checkpoint 5770 | -7/Lower Caves | Entered another Lower Caves area 5876 | -7/Lower Caves | Learned location of 1 exit from Factory 6041 | -7/Lower Caves | Encountered a Warlord checkpoint 6066 | -7/Lower Caves | Discovered new exit (range 11) 6082 | -7/Lower Caves | Entered Data Miner 6082 | -7/Data Miner | Discovered new exit (range 6) 6113 | -7/Data Miner | Met Data Miner 6142 | -7/Data Miner | Learned location of Section 7 (-3) 6142 | -7/Data Miner | Acquired the access code to Warlord's prototype stash 6167 | -7/Data Miner | Received God Mode back door access code from Data Miner 6201 | -7/Data Miner | Entered Proximity Caves 6224 | -6/Proximity Caves | Learned Factory security intel 6297 | -6/Proximity Caves | Escorted by Enhanced Grunt 6300 | -6/Proximity Caves | Spotter reported a threat 6444 | -6/Proximity Caves | Discovered new exit (range 4) 6450 | -6/Proximity Caves | Entered Factory 6450 | -6/Factory | Evolved 2 slots: Utility x2 6451 | -6/Factory | Identified exit to Factory 6887 | -6/Factory | Lost 4 parts (1p2n1u) 7029 | -6/Factory | Incoming investigation squad redirected 7228 | -6/Factory | Lost 3 parts (1n2u) 7235 | -6/Factory | Identified exit to Lower Caves 7235 | -6/Factory | Identified exit to Extension 7540 | -6/Factory | Crushed by falling debris 7588 | -6/Factory | Crushed by falling debris 7589 | -6/Factory | System corruption reached 10% 7616 | -6/Factory | Entered Extension 7619 | -6/Extension | Lost 4 parts (1p1n2u) 7725 | -6/Extension | Rescued a captive Derelict 8130 | -6/Extension | Rescued A7 8148 | -6/Extension | Spotted B-75 Beast 8154 | -6/Extension | Spotted B-75 Beast 8177 | -6/Extension | Destroyed B-75 Beast 8195 | -6/Extension | Allies destroyed B-75 Beast 8219 | -6/Extension | Lost 3 parts (2p1n) 8443 | -6/Extension | Build established: Scavenger-Mutant 8490 | -6/Extension | Rescued a captive Derelict 8491 | -6/Extension | Rescued a captive Derelict 8526 | -6/Extension | Rescued a captive Derelict 8527 | -6/Extension | Rescued a captive Derelict 8666 | -6/Extension | Rescued a captive Derelict 8667 | -6/Extension | Rescued a captive Derelict 8799 | -6/Extension | Discovered exit to Factory (range 10) 8801 | -6/Extension | Discovered new exit (range 6) 8835 | -6/Extension | Entered Cetus 8835 | -6/Cetus | Accompanied by 7 allies (A7) 8840 | -6/Cetus | Acquired a Cetus Manufacturing Module code from A7 8867 | -6/Cetus | Spotted Cetus Guard 8867 | -6/Cetus | Spotted Cetus Guard 8869 | -6/Cetus | Spotted Cetus Guard 8871 | -6/Cetus | Spotted Cetus Guard 8881 | -6/Cetus | Allies destroyed Cetus Guard 8888 | -6/Cetus | Destroyed Cetus Guard 8900 | -6/Cetus | Allies destroyed Cetus Guard 8902 | -6/Cetus | Allies destroyed Cetus Guard 8918 | -6/Cetus | System corruption reached 30% 8996 | -6/Cetus | Escorted A7 to Cetus Mainframe 9075 | -6/Cetus | Cetus Manufacturing Module disabled 9102 | -6/Cetus | Discovered new exit (range 16) 9130 | -6/Cetus | Spotted Cetus Guard 9130 | -6/Cetus | Spotted Cetus Guard 9134 | -6/Cetus | Spotted Cetus Guard 9142 | -6/Cetus | Allies destroyed Cetus Guard 9144 | -6/Cetus | Spotted Cetus Guard 9161 | -6/Cetus | Allies destroyed Cetus Guard 9162 | -6/Cetus | Destroyed Cetus Guard 9192 | -6/Cetus | Allies destroyed Cetus Guard 9213 | -6/Cetus | Discovered exit to Factory (range 16) 9221 | -6/Cetus | Met Revision 17 9351 | -6/Cetus | Entered Archives 9351 | -6/Archives | Accompanied by 1 ally (A7) 9356 | -6/Archives | Received a hacking code to weaken MAIN.C 9492 | -6/Archives | Discovered exit to Factory (range 15) 9611 | -6/Archives | Discovered new exit (range 15) 9966 | -6/Archives | Discovered new exit (range 15) 9990 | -6/Archives | Entered Hub_04(d) 10236 | -6/Hub_04(d) | Discovered exit to Factory (range 9) 10296 | -6/Hub_04(d) | Network Hub disabled 10309 | -6/Hub_04(d) | Spotted Lightning 10310 | -6/Hub_04(d) | Spotted Lightning 10311 | -6/Hub_04(d) | Spotted Lightning 10311 | -6/Hub_04(d) | Spotted Lightning 10313 | -6/Hub_04(d) | Spotted Lightning 10313 | -6/Hub_04(d) | Spotted Lightning 10314 | -6/Hub_04(d) | Spotted Lightning 10315 | -6/Hub_04(d) | Spotted Lightning 10316 | -6/Hub_04(d) | Spotted Lightning 10317 | -6/Hub_04(d) | Entered Factory 10317 | -5/Factory | Evolved 2 slots: Propulsion x2 10318 | -5/Factory | Identified exit to Upper Caves 10747 | -5/Factory | System corruption reached 10% 11024 | -5/Factory | Discovered new exit (range 8) 11199 | -5/Factory | Spotted B-75 Beast 11338 | -5/Factory | Incoming investigation squad redirected 11459 | -5/Factory | System corruption reached 30% 11513 | -5/Factory | Entered Upper Caves 11668 | -5/Upper Caves | Encountered a Warlord checkpoint 11855 | -5/Upper Caves | Learned 8 Factory zone layouts 12031 | -5/Upper Caves | Discovered new exit (range 11) 12111 | -5/Upper Caves | Entered another Upper Caves area 12175 | -5/Upper Caves | Discovered new exit (range 9) 12199 | -5/Upper Caves | Spotted B-75 Beast 12347 | -5/Upper Caves | Destroyed B-75 Beast 12893 | -5/Upper Caves | Discovered new exit (range 15) 12903 | -5/Upper Caves | Encountered a Warlord checkpoint 12976 | -5/Upper Caves | Entered Warlord 13031 | -5/Warlord | System corruption cleaned by Quarantine Array 13585 | -5/Warlord | Met Warlord 13600 | -5/Warlord | Opened Warlord's prototype stash 13608 | -5/Warlord | Found Prototype Device 13608 | -5/Warlord | Identified Thermal Barrier 13610 | -5/Warlord | Warlord's base attacked by MAIN.C 13623 | -5/Warlord | Found Prototype Device 13623 | -5/Warlord | Identified Exp. Phase Shifter 13639 | -5/Warlord | Found Prototype Reactor 13960 | -5/Warlord | Warlord forces counterattacked 13972 | -5/Warlord | Spotted Executioner 13997 | -5/Warlord | Destroyed Executioner 14005 | -5/Warlord | Spotted Executioner 14007 | -5/Warlord | Spotted Executioner 14032 | -5/Warlord | Found Exp. Targeting Computer 14034 | -5/Warlord | Spotted Executioner 14037 | -5/Warlord | Destroyed 9 combat bots 14045 | -5/Warlord | Destroyed Executioner 14056 | -5/Warlord | Spotted Striker 14085 | -5/Warlord | Discovered new exit (range 12) 14101 | -5/Warlord | Entered Proximity Caves 14116 | -4/Proximity Caves | Attracted the attention of an 0b10 checkpoint 14366 | -4/Proximity Caves | Spotter reported a threat 14415 | -4/Proximity Caves | Spotter reported a threat 14418 | -4/Proximity Caves | Spotted B-86 Titan 14423 | -4/Proximity Caves | Learned location of Armory (-4) 14474 | -4/Proximity Caves | Spotter reported a threat 14573 | -4/Proximity Caves | Discovered new exit (range 7) 14658 | -4/Proximity Caves | Entered Factory 14658 | -4/Factory | Evolved 2 slots: Power x1, Utility x1 14659 | -4/Factory | Identified exit to Research 14720 | -4/Factory | Identified Vortex Chain Reactor 14832 | -4/Factory | Identified exit to Upper Caves 14832 | -4/Factory | Identified exit to Armory 14940 | -4/Factory | Incoming investigation squad redirected 14997 | -4/Factory | Incoming investigation squad redirected 15023 | -4/Factory | Repaired Centrium Heavy Treads? 15049 | -4/Factory | Fabricated Exp. Targeting Computer? 15575 | -4/Factory | Entered Upper Caves 15696 | -4/Upper Caves | Attracted the attention of an 0b10 checkpoint 15996 | -4/Upper Caves | Discovered new exit (range 10) 16014 | -4/Upper Caves | Entered another Upper Caves area 16076 | -4/Upper Caves | Attracted the attention of an 0b10 outpost 16144 | -4/Upper Caves | System corruption reached 10% 16209 | -4/Upper Caves | Lost 9 parts (1p2n4u2w) 16210 | -4/Upper Caves | Destroyed 13 combat bots 16377 | -4/Upper Caves | Attracted the attention of an 0b10 checkpoint 16405 | -4/Upper Caves | Learned 4 Research zone layouts 16518 | -4/Upper Caves | Discovered new exit (range 4) 16596 | -4/Upper Caves | Entered Zhirov 16597 | -4/Zhirov | Discovered new exit (range 3) 16626 | -4/Zhirov | Met Zhirov 16661 | -4/Zhirov | Learned location of Quarantine (-3) 16661 | -4/Zhirov | Learned location of Testing (-2) 16661 | -4/Zhirov | Learned location of Command (-1) 16671 | -4/Zhirov | Zhirov requested help retrieving the SGEMP Prototype 16739 | -4/Zhirov | Found Alien Artifact 16739 | -4/Zhirov | Identified Integrated Reactor 16739 | -4/Zhirov | Installed Integrated Reactor, increased core energy generation (+10) 16759 | -4/Zhirov | Found Alien Artifact 16884 | -4/Zhirov | Entered Proximity Caves 17412 | -3/Proximity Caves | Discovered exit to Research (range 12) 17434 | -3/Proximity Caves | Entered Research 17434 | -3/Research | Evolved 2 slots: Utility x1, Weapon x1 17996 | -3/Research | Spotted Striker 17996 | -3/Research | Spotted Striker 17996 | -3/Research | Released all parts (12) 17997 | -3/Research | Cargo convoy interrupted 18004 | -3/Research | Spotted Executioner 18004 | -3/Research | Spotted Striker 18008 | -3/Research | Core integrity fell below 50% 18012 | -3/Research | Core integrity fell below 20% 18021 | -3/Research | Destroyed by H-71 Marshal with Heavy Mass Driver Last Messages --------------- 18005_ Penetrated by Slug. 18005_ Slug penetrates P-80 Master. 18005_ Adv. Hacking Suite destroyed. 18006_ Slammed into U-05 Engineer. 18006_ R-10 Processor collects Unknown Storage. 18007_ Slammed into R-10 Processor. 18007_ P-80 Master resets M-36 Artificer, system corruption cleaned. 18007_ Slug penetrates Wall. 18007_ Penetrated by Slug. 18008_ Wall collapses. 18008_ Acquired 55 matter. 18008_ X-77 Beamer knocked back. 18008_ K-01 Serf collects debris. 18009_ R-10 Processor collects Mic. Antimatter Reactor. 18011_ Slug penetrates H-77 Assassin. 18011_ Slammed into U-05 Engineer. 18013_ U-05 Engineer builds a Wall. 18014_ Slammed into R-10 Processor. 18016_ Slammed into K-01 Serf. 18017_ Penetrated by Slug. Map ----- +----------------------------------------------------+ | ?????????????????????????????????????????????????? | | ?????????????????????????????????????????????????? | | ?????????????????????????????????????????????????? | | ?????????????????????????????????????????????????? | | ?????????????????????????????????????????????????? | | ?????????????????????????????????????????????????? | | ?????????????????????????????????????????????????? | | ?????????????????????????????????????????????????? | | ?????????????????????????????????????????????????? | | ?????????????????????????????????????????????????? | | ????????????????????????????????????????????? ??## | | ????????????????????????????????????????#?###### # | | ???????????????????????????????????????? | | ???????????????????????????????????????#? | | ???????????????????????????????????????# "" =[ | | ??????????????????????????????????????## """ *%[ | | ??????????????????????????????????????# "R !! | | ????????????????????????????????##?????# """ | | ??????????????????????##########;#####?# """ | | ??????????????????????# Y#?# " """ | | ??????????????????????# #??# %"[ " | | ??????????????????????# * !!! #??# =] " " | | ??????????????????????# !!! #??# =%!*%] | | ??????????????????????# !!! #??# /!= [!] | | ???????????????/ ?????# K #?###### /#### | | ???????????????# ###@##/######### ### %!!=#?? | | ?????????#?????# + H Kp ####### !# %=%#?? | | ?????????? ?????????####% K % % /% !*#%=|!#?? | | ??????????? ??????????# %u####### /=![!#?? | | ????????????# ?????????# #?????# [% # !]*#?? | | ????????????# ######### #?????# # !%#?? | | ????????????# #?????# # !%### | | ????????????# ###########+## %"! | | ????????????# " % | | ?????????????#######+## " | | ?????????????????? # ################ ^ | | ???????????????? # #?? # #????????######## | | ?????????????? # #?? #????????????? ? | | ????????????# # #######?????????????! ? | | ????????????# # ## #????????????? ? | | ????????????# # #???????????????? | | ????????????# # [ #???????????????? | | ????????????# ####### !#???????????????? | | ????????????###########?????##![##???????????????? | | ?????????????????????#########*=##???????????????? | | ?????????????????????# """ #%[##???????????????? | | ?????????????????????# """ #!=#????????????????? | | ?????????????????????# """ #!=#????????????????? | | ????????############## # #????????????????? | | ????????# # # #????????????????? | +----------------------------------------------------+ Best States ------------- Heat Dissipation 70 Energy Generation 83 Energy Capacity 950 Matter Stores 300 Matter Capacity 600 Sight Range 18 Terrain Scan Range 16 Terrain Scan Density 10 Jamming Range 14 Additional Mass Support 16 Armor Coverage 2400 Resistance: TH 50 Weapon Shielding 90 Weapon Cycling 15 Phase Shifting 20 Evasion (%) 60 Targeting Accuracy 20 Recoil Reduction 6 Matter Filtering 50 Offensive Hacking 20 Item Schematics ----------------- Combat Drone Bay | -7/Data Miner | Free Lgt. Regenerative Plating | -7/Data Miner | Free Cld. Cesium-ion Thruster | -7/Data Miner | Free Exp. Targeting Computer | -7/Data Miner | Free Prc. Rocket Launcher | -7/Data Miner | Free Hvy. Treads | -7/Data Miner | Free Imp. Coolant Injector | -7/Data Miner | Free Imp. Remote Datajack | -7/Data Miner | Free Coil Gun | -7/Data Miner | Free Hvy. Phase Cannon | -7/Data Miner | Free Adv. System Shield | -7/Data Miner | Free Assault Drone Bay | -4/Zhirov | Free Exp. Heat Sink | -4/Zhirov | Free Exp. Optical Array | -4/Zhirov | Free Imp. Arc Thrower | -4/Zhirov | Free Robot Schematics ------------------ B-48 Gladiator | -7/Data Miner | Free M-14 Sweeper | -7/Data Miner | Free G-47 Trooper | -7/Data Miner | Free M-22 Extractor | -7/Data Miner | Free P-60 Hacker | -7/Data Miner | Free Fabricated ------------ Imp. Transmission Jammer | x1 | -7/Factory | Preloaded Exp. Targeting Computer | x1 | -4/Factory Alien Tech Used ----------------- Dimensional Node Initializer Integrated Reactor Achievements -------------- None Challenges ------------ None Game ------ Seed HoverXenonMonowheel Manual? 0 Play Time 02:05:59 Cumulative 644.8 hours Start 2023.07.04 @ 12:21:47 End 2023.07.05 @ 18:12:54 Sessions 9 Manual Loads 0 Difficulty Rogue Special Mode None Game No. 564 Rogue 349 Adventurer 112 Explorer 103 Win Type - Total 42 Types 26/0/8/3/0/0/4/1/0 Lore% 85 Gallery% 91 Achievement% 82 Wizard Run 0 Options --------- ASCII 1 Keyboard 1 Movement Vi Keybinds 1 Fullscreen 2 Font 36/TerminusBold Map View 76x56 Tactical HUD 1 Map Filters NONE Filters NONE Steam 0 RUN: 6b40b313-b568-4e0e-920b-f16878cbf2c8